[Event "Titled Tuesday Blitz November 07 Late 2023"]
[White "Bortnyk, Mykola"]
[Black "Rastbod, Ali"]
[WhiteFideId "14120836"]
[BlackFideId "12567477"]
[WhiteElo "2931"]
[BlackElo "2750"]
[Result "0-1"]
[Round "7"]
[TimeControl "180+1"]
[Date "2023.11.07"]
[WhiteClock "0:00:00"]
[BlackClock "0:00:08"]
[Board "13"]

1. e4 {[%clk 0:03:00]}  c6 {[%clk 0:02:50]} 2. d4 {[%clk 0:02:58]}  d5 {[%clk 0:02:51]} 3. Nc3 {[%clk 0:02:58]}  dxe4 {[%clk 0:02:51]} 4. Nxe4 {[%clk 0:02:59]}  Nf6 {[%clk 0:02:51]} 5. Nxf6+ {[%clk 0:03:00]}  exf6 {[%clk 0:02:52]} 6. Bc4 {[%clk 0:03:00]}  Bd6 {[%clk 0:02:52]} 7. Qe2+ {[%clk 0:03:01]}  Be7 {[%clk 0:02:53]} 8. Nf3 {[%clk 0:03:00]}  O-O {[%clk 0:02:53]} 9. O-O {[%clk 0:03:01]}  Nd7 {[%clk 0:02:53]} 10. Re1 {[%clk 0:03:02]}  Re8 {[%clk 0:02:53]} 11. Qe4 {[%clk 0:02:41]}  Nf8 {[%clk 0:02:41]} 12. Bd3 {[%clk 0:02:30]}  Be6 {[%clk 0:02:32]} 13. Bf4 {[%clk 0:02:14]}  Qb6 {[%clk 0:02:28]} 14. c4 {[%clk 0:02:03]}  Rad8 {[%clk 0:02:21]} 15. a3 {[%clk 0:01:51]}  Ng6 {[%clk 0:02:09]} 16. c5 {[%clk 0:01:49]}  Qb3 {[%clk 0:02:00]} 17. Bc7 {[%clk 0:01:32]}  Rd7 {[%clk 0:01:57]} 18. Bg3 {[%clk 0:01:30]}  Qd5 {[%clk 0:01:51]} 19. Qe2 {[%clk 0:01:26]}  Qh5 {[%clk 0:01:45]} 20. Qc2 {[%clk 0:01:11]}  Bf8 {[%clk 0:01:37]} 21. b4 {[%clk 0:01:09]}  Red8 {[%clk 0:01:35]} 22. a4 {[%clk 0:01:05]}  Bg4 {[%clk 0:01:28]} 23. Be2 {[%clk 0:01:02]}  Qf5 {[%clk 0:01:24]} 24. Qxf5 {[%clk 0:00:48]}  Bxf5 {[%clk 0:01:25]} 25. b5 {[%clk 0:00:49]}  Bg4 {[%clk 0:01:25]} 26. a5 {[%clk 0:00:47]}  Bxf3 {[%clk 0:01:19]} 27. Bxf3 {[%clk 0:00:47]}  Rxd4 {[%clk 0:01:19]} 28. a6 {[%clk 0:00:40]}  bxa6 {[%clk 0:01:18]} 29. bxc6 {[%clk 0:00:38]}  Rc8 {[%clk 0:01:12]} 30. c7 {[%clk 0:00:18]}  Ne5 {[%clk 0:01:11]} 31. c6 {[%clk 0:00:14]}  Bd6 {[%clk 0:00:55]} 32. Rxa6 {[%clk 0:00:13]}  Rxc7 {[%clk 0:00:50]} 33. Rb1 {[%clk 0:00:13]}  g5 {[%clk 0:00:36]} 34. h3 {[%clk 0:00:13]}  Nxf3+ {[%clk 0:00:30]} 35. gxf3 {[%clk 0:00:14]}  Bxg3 {[%clk 0:00:28]} 36. fxg3 {[%clk 0:00:14]}  Rc4 {[%clk 0:00:28]} 37. Rb7 {[%clk 0:00:12]}  R7xc6 {[%clk 0:00:24]} 38. Rxc6 {[%clk 0:00:13]}  Rxc6 {[%clk 0:00:25]} 39. Rxa7 {[%clk 0:00:14]}  Rc2 {[%clk 0:00:22]} 40. Ra6 {[%clk 0:00:11]}  Kg7 {[%clk 0:00:23]} 41. g4 {[%clk 0:00:12]}  Re2 {[%clk 0:00:16]} 42. Rb6 {[%clk 0:00:11]}  Re6 {[%clk 0:00:17]} 43. Rb5 {[%clk 0:00:12]}  h5 {[%clk 0:00:16]} 44. Kf2 {[%clk 0:00:12]}  h4 {[%clk 0:00:16]} 45. Rb2 {[%clk 0:00:11]}  Kf8 {[%clk 0:00:16]} 46. Rb8+ {[%clk 0:00:10]}  Ke7 {[%clk 0:00:17]} 47. Rb7+ {[%clk 0:00:11]}  Ke8 {[%clk 0:00:17]} 48. Ra7 {[%clk 0:00:10]}  Re7 {[%clk 0:00:16]} 49. Ra6 {[%clk 0:00:10]}  Re6 {[%clk 0:00:16]} 50. Ra7 {[%clk 0:00:11]}  Kf8 {[%clk 0:00:16]} 51. Rb7 {[%clk 0:00:11]}  Re7 {[%clk 0:00:15]} 52. Rb8+ {[%clk 0:00:11]}  Kg7 {[%clk 0:00:15]} 53. Rb6 {[%clk 0:00:12]}  Re5 {[%clk 0:00:15]} 54. Ra6 {[%clk 0:00:12]}  f5 {[%clk 0:00:15]} 55. Ra4 {[%clk 0:00:04]}  Kf6 {[%clk 0:00:14]} 56. Ra6+ {[%clk 0:00:04]}  Re6 {[%clk 0:00:15]} 57. Ra5 {[%clk 0:00:05]}  fxg4 {[%clk 0:00:11]} 58. hxg4 {[%clk 0:00:05]}  Rb6 {[%clk 0:00:07]} 59. Ra2 {[%clk 0:00:05]}  Ke5 {[%clk 0:00:07]} 60. Re2+ {[%clk 0:00:06]}  Kf6 {[%clk 0:00:07]} 61. Rd2 {[%clk 0:00:06]}  Re6 {[%clk 0:00:07]} 62. Rd5 {[%clk 0:00:06]}  Kg6 {[%clk 0:00:07]} 63. Rd8 {[%clk 0:00:07]}  Ra6 {[%clk 0:00:07]} 64. Rd2 {[%clk 0:00:07]}  f6 {[%clk 0:00:06]} 65. Kg2 {[%clk 0:00:07]}  Ra3 {[%clk 0:00:06]} 66. Re2 {[%clk 0:00:08]}  Ra6 {[%clk 0:00:06]} 67. Rb2 {[%clk 0:00:08]}  Kf7 {[%clk 0:00:06]} 68. Re2 {[%clk 0:00:08]}  Re6 {[%clk 0:00:06]} 69. Rd2 {[%clk 0:00:08]}  Re5 {[%clk 0:00:04]} 70. f4 {[%clk 0:00:08]}  Re4 {[%clk 0:00:04]} 71. fxg5 {[%clk 0:00:07]}  fxg5 {[%clk 0:00:05]} 72. Kh3 {[%clk 0:00:07]}  Re3+ {[%clk 0:00:05]} 73. Kh2 {[%clk 0:00:07]}  Rg3 {[%clk 0:00:05]} 74. Rd4 {[%clk 0:00:07]}  Kf6 {[%clk 0:00:06]} 75. Re4 {[%clk 0:00:08]}  Kf7 {[%clk 0:00:05]} 76. Kh1 {[%clk 0:00:07]}  Kg7 {[%clk 0:00:04]} 77. Kh2 {[%clk 0:00:08]}  Kf6 {[%clk 0:00:04]} 78. Kh1 {[%clk 0:00:08]}  Rf3 {[%clk 0:00:05]} 79. Kg2 {[%clk 0:00:09]}  Rf4 {[%clk 0:00:05]} 80. Re8 {[%clk 0:00:03]}  Rxg4+ {[%clk 0:00:05]} 81. Kh3 {[%clk 0:00:04]}  Rg3+ {[%clk 0:00:06]} 82. Kh2 {[%clk 0:00:05]}  Kf5 {[%clk 0:00:06]} 83. Ra8 {[%clk 0:00:05]}  Kg4 {[%clk 0:00:07]} 84. Ra4+ {[%clk 0:00:05]}  Kh5 {[%clk 0:00:07]} 85. Rb4 {[%clk 0:00:06]}  Ra3 {[%clk 0:00:07]} 86. Rb2 {[%clk 0:00:06]}  Ra5 {[%clk 0:00:07]} 87. Rc2 {[%clk 0:00:06]}  g4 {[%clk 0:00:07]} 88. Kg2 {[%clk 0:00:06]}  Rf5 {[%clk 0:00:07]} 89. Rc8 {[%clk 0:00:06]}  h3+ {[%clk 0:00:06]} 90. Kh2 {[%clk 0:00:05]}  Rf2+ {[%clk 0:00:06]} 91. Kg1 {[%clk 0:00:06]}  Rg2+ {[%clk 0:00:06]} 92. Kh1 {[%clk 0:00:06]}  Ra2 {[%clk 0:00:07]} 93. Rc1 {[%clk 0:00:05]}  Kh4 {[%clk 0:00:07]} 94. Rb1 {[%clk 0:00:05]}  Ra4 {[%clk 0:00:07]} 95. Rc1 {[%clk 0:00:06]}  g3 {[%clk 0:00:07]} 96. Kg1 {[%clk 0:00:05]}  Rf4 {[%clk 0:00:07]} 97. Re1 {[%clk 0:00:06]}  h2+ {[%clk 0:00:07]} 98. Kg2 {[%clk 0:00:02]}  Rf2+ {[%clk 0:00:07]} 99. Kh1 {[%clk 0:00:00]}  Kh3 {[%clk 0:00:08]} 0-1


[Site "https://www.chess.com"]

[Event "Titled Tuesday Blitz November 07 Late 2023"]
[White "Remolar Gallen, Jose"]
[Black "Indjic, Aleksandar"]
[WhiteFideId "2215187"]
[BlackFideId "911925"]
[WhiteElo "2534"]
[BlackElo "2927"]
[Result "1/2-1/2"]
[Round "7"]
[TimeControl "180+1"]
[Date "2023.11.07"]
[WhiteClock "0:00:16"]
[BlackClock "0:00:13"]
[Board "14"]

1. e4 {[%clk 0:03:00]}  c5 {[%clk 0:02:57]} 2. Nf3 {[%clk 0:03:01]}  e6 {[%clk 0:02:56]} 3. d4 {[%clk 0:02:59]}  cxd4 {[%clk 0:02:57]} 4. Nxd4 {[%clk 0:03:00]}  a6 {[%clk 0:02:57]} 5. Nc3 {[%clk 0:03:00]}  b5 {[%clk 0:02:56]} 6. Bd3 {[%clk 0:02:58]}  Bb7 {[%clk 0:02:57]} 7. O-O {[%clk 0:02:58]}  Nc6 {[%clk 0:02:57]} 8. Nxc6 {[%clk 0:02:57]}  Bxc6 {[%clk 0:02:58]} 9. a3 {[%clk 0:02:55]}  Bc5 {[%clk 0:02:56]} 10. Qe2 {[%clk 0:02:55]}  Ne7 {[%clk 0:02:55]} 11. Be3 {[%clk 0:02:54]}  Qb6 {[%clk 0:02:52]} 12. Rae1 {[%clk 0:02:29]}  Bxe3 {[%clk 0:02:51]} 13. Qxe3 {[%clk 0:02:30]}  Qxe3 {[%clk 0:02:50]} 14. Rxe3 {[%clk 0:02:31]}  Rb8 {[%clk 0:02:50]} 15. f4 {[%clk 0:02:28]}  O-O {[%clk 0:02:48]} 16. f5 {[%clk 0:02:23]}  Rfc8 {[%clk 0:02:41]} 17. Ne2 {[%clk 0:02:06]}  f6 {[%clk 0:02:15]} 18. fxe6 {[%clk 0:01:54]}  dxe6 {[%clk 0:02:14]} 19. Nd4 {[%clk 0:01:55]}  e5 {[%clk 0:02:13]} 20. Nf5 {[%clk 0:01:41]}  Nxf5 {[%clk 0:02:11]} 21. Rxf5 {[%clk 0:01:41]}  Kf8 {[%clk 0:02:08]} 22. g4 {[%clk 0:01:41]}  h6 {[%clk 0:02:07]} 23. Rg3 {[%clk 0:01:32]}  Bd7 {[%clk 0:02:07]} 24. Rf2 {[%clk 0:01:32]}  Ke7 {[%clk 0:02:07]} 25. h4 {[%clk 0:01:32]}  g5 {[%clk 0:02:05]} 26. h5 {[%clk 0:01:14]}  Rb6 {[%clk 0:02:05]} 27. Kg2 {[%clk 0:01:13]}  a5 {[%clk 0:02:03]} 28. Kh3 {[%clk 0:01:12]}  Rd6 {[%clk 0:01:54]} 29. Rgf3 {[%clk 0:01:09]}  b4 {[%clk 0:01:53]} 30. axb4 {[%clk 0:01:07]}  axb4 {[%clk 0:01:54]} 31. Kg3 {[%clk 0:01:05]}  Ra8 {[%clk 0:01:51]} 32. Rf1 {[%clk 0:00:55]}  Ra2 {[%clk 0:01:50]} 33. b3 {[%clk 0:00:48]}  Ra5 {[%clk 0:01:47]} 34. Rd1 {[%clk 0:00:43]}  Ra2 {[%clk 0:01:41]} 35. Rff1 {[%clk 0:00:41]}  Be6 {[%clk 0:01:29]} 36. Kf3 {[%clk 0:00:28]}  Rd8 {[%clk 0:01:25]} 37. Kg3 {[%clk 0:00:15]}  Rda8 {[%clk 0:01:21]} 38. Kf3 {[%clk 0:00:15]}  Rb2 {[%clk 0:01:21]} 39. Ra1 {[%clk 0:00:14]}  Raa2 {[%clk 0:01:18]} 40. Rxa2 {[%clk 0:00:14]}  Rxa2 {[%clk 0:01:18]} 41. Rg1 {[%clk 0:00:12]}  Ra7 {[%clk 0:01:10]} 42. Ke3 {[%clk 0:00:13]}  Kd6 {[%clk 0:01:10]} 43. Kd2 {[%clk 0:00:07]}  Kc5 {[%clk 0:01:07]} 44. Ke3 {[%clk 0:00:07]}  Kd6 {[%clk 0:01:06]} 45. Be2 {[%clk 0:00:07]}  Kd7 {[%clk 0:01:06]} 46. Rd1+ {[%clk 0:00:07]}  Ke7 {[%clk 0:01:06]} 47. Rg1 {[%clk 0:00:04]}  Ra5 {[%clk 0:01:04]} 48. Rd1 {[%clk 0:00:03]}  Ra2 {[%clk 0:01:03]} 49. Rc1 {[%clk 0:00:03]}  Kd6 {[%clk 0:01:01]} 50. Bf3 {[%clk 0:00:02]}  Bd7 {[%clk 0:00:55]} 51. Be2 {[%clk 0:00:02]}  Ke7 {[%clk 0:00:53]} 52. Bf3 {[%clk 0:00:02]}  Ra7 {[%clk 0:00:37]} 53. Be2 {[%clk 0:00:03]}  Be6 {[%clk 0:00:37]} 54. Bf3 {[%clk 0:00:03]}  Kd6 {[%clk 0:00:37]} 55. Rd1+ {[%clk 0:00:04]}  Kc7 {[%clk 0:00:36]} 56. Be2 {[%clk 0:00:04]}  Ra2 {[%clk 0:00:33]} 57. Rc1 {[%clk 0:00:05]}  Kd6 {[%clk 0:00:32]} 58. Bf3 {[%clk 0:00:05]}  Kc5 {[%clk 0:00:32]} 59. Be2 {[%clk 0:00:06]}  Bd7 {[%clk 0:00:30]} 60. Bf3 {[%clk 0:00:06]}  Bb5 {[%clk 0:00:30]} 61. Bd1 {[%clk 0:00:05]}  Ba6 {[%clk 0:00:23]} 62. Bf3 {[%clk 0:00:05]}  Bc8 {[%clk 0:00:23]} 63. Be2 {[%clk 0:00:05]}  Bd7 {[%clk 0:00:22]} 64. Bf3 {[%clk 0:00:05]}  Bb5 {[%clk 0:00:22]} 65. Bd1 {[%clk 0:00:05]}  Ra8 {[%clk 0:00:22]} 66. Bf3 {[%clk 0:00:05]}  Rd8 {[%clk 0:00:21]} 67. Rd1 {[%clk 0:00:05]}  Rd4 {[%clk 0:00:19]} 68. Be2 {[%clk 0:00:03]}  Rxd1 {[%clk 0:00:12]} 69. Bxd1 {[%clk 0:00:03]}  Ba6 {[%clk 0:00:13]} 70. Bf3 {[%clk 0:00:03]}  Bf1 {[%clk 0:00:12]} 71. Bd1 {[%clk 0:00:03]}  Bb5 {[%clk 0:00:11]} 72. Bf3 {[%clk 0:00:02]}  Kd6 {[%clk 0:00:12]} 73. Bd1 {[%clk 0:00:03]}  Bc6 {[%clk 0:00:11]} 74. Bf3 {[%clk 0:00:03]}  Kc5 {[%clk 0:00:12]} 75. Bd1 {[%clk 0:00:04]}  Bd7 {[%clk 0:00:10]} 76. Bf3 {[%clk 0:00:05]}  Bc8 {[%clk 0:00:10]} 77. Bd1 {[%clk 0:00:05]}  Ba6 {[%clk 0:00:10]} 78. Bf3 {[%clk 0:00:06]}  Bf1 {[%clk 0:00:10]} 79. Bd1 {[%clk 0:00:06]}  Kd6 {[%clk 0:00:09]} 80. Bf3 {[%clk 0:00:07]}  Kc6 {[%clk 0:00:09]} 81. Bd1 {[%clk 0:00:07]}  Kc5 {[%clk 0:00:09]} 82. Kf2 {[%clk 0:00:08]}  Bb5 {[%clk 0:00:08]} 83. Ke3 {[%clk 0:00:08]}  Bd7 {[%clk 0:00:08]} 84. Bf3 {[%clk 0:00:09]}  Bc6 {[%clk 0:00:09]} 85. Bd1 {[%clk 0:00:09]}  Bb5 {[%clk 0:00:09]} 86. Bf3 {[%clk 0:00:10]}  Kb6 {[%clk 0:00:09]} 87. Bd1 {[%clk 0:00:11]}  Kc7 {[%clk 0:00:09]} 88. Bf3 {[%clk 0:00:11]}  Kd8 {[%clk 0:00:10]} 89. Bd1 {[%clk 0:00:12]}  Ke7 {[%clk 0:00:10]} 90. Bf3 {[%clk 0:00:13]}  Bd7 {[%clk 0:00:10]} 91. Bd1 {[%clk 0:00:13]}  Be6 {[%clk 0:00:11]} 92. Bf3 {[%clk 0:00:14]}  Kd6 {[%clk 0:00:11]} 93. Be2 {[%clk 0:00:15]}  Kc5 {[%clk 0:00:12]} 94. Bf3 {[%clk 0:00:15]}  Bd7 {[%clk 0:00:12]} 95. Be2 {[%clk 0:00:16]}  Bc6 {[%clk 0:00:12]} 96. Bf3 {[%clk 0:00:15]}  Bb5 {[%clk 0:00:13]} 97. Bd1 {[%clk 0:00:16]} 1/2-1/2


[Site "https://www.chess.com"]

[Event "Titled Tuesday Blitz November 07 Late 2023"]
[White "Elsa167"]
[Black "Brodsky, David"]
[BlackFideId "2073250"]
[WhiteElo "2975"]
[BlackElo "2806"]
[Result "1-0"]
[Round "7"]
[TimeControl "180+1"]
[Date "2023.11.07"]
[WhiteClock "0:00:35"]
[BlackClock "0:00:04"]
[Board "16"]

1. d4 {[%clk 0:03:00]}  Nf6 {[%clk 0:02:59]} 2. c4 {[%clk 0:03:01]}  e6 {[%clk 0:03:00]} 3. Nf3 {[%clk 0:03:01]}  d5 {[%clk 0:03:00]} 4. Nc3 {[%clk 0:03:01]}  c6 {[%clk 0:03:00]} 5. Bg5 {[%clk 0:03:02]}  h6 {[%clk 0:02:59]} 6. Bxf6 {[%clk 0:03:02]}  Qxf6 {[%clk 0:03:00]} 7. Qc2 {[%clk 0:03:03]}  dxc4 {[%clk 0:02:52]} 8. e3 {[%clk 0:03:02]}  b5 {[%clk 0:02:51]} 9. a4 {[%clk 0:03:03]}  Bb7 {[%clk 0:02:25]} 10. axb5 {[%clk 0:03:03]}  cxb5 {[%clk 0:02:25]} 11. Nxb5 {[%clk 0:03:04]}  Bb4+ {[%clk 0:02:23]} 12. Nc3 {[%clk 0:03:04]}  O-O {[%clk 0:02:22]} 13. Be2 {[%clk 0:03:03]}  Rc8 {[%clk 0:02:15]} 14. O-O {[%clk 0:03:02]}  Nd7 {[%clk 0:02:07]} 15. Nd2 {[%clk 0:03:00]}  Nb6 {[%clk 0:02:03]} 16. Bf3 {[%clk 0:03:00]}  Nd5 {[%clk 0:01:33]} 17. Rfc1 {[%clk 0:02:47]}  a5 {[%clk 0:01:31]} 18. Nde4 {[%clk 0:02:33]}  Qg6 {[%clk 0:01:22]} 19. Na4 {[%clk 0:02:28]}  Bc6 {[%clk 0:01:04]} 20. Nac5 {[%clk 0:02:03]}  Rab8 {[%clk 0:00:51]} 21. Nd6 {[%clk 0:01:37]}  Qxc2 {[%clk 0:00:46]} 22. Rxc2 {[%clk 0:01:38]}  Rd8 {[%clk 0:00:42]} 23. Nxc4 {[%clk 0:01:33]}  Bxc5 {[%clk 0:00:42]} 24. Nxa5 {[%clk 0:01:17]}  Ra8 {[%clk 0:00:32]} 25. Rxc5 {[%clk 0:01:16]}  Be8 {[%clk 0:00:30]} 26. Rcc1 {[%clk 0:00:49]}  Rdb8 {[%clk 0:00:30]} 27. Nc4 {[%clk 0:00:49]}  Rxa1 {[%clk 0:00:27]} 28. Rxa1 {[%clk 0:00:50]}  Kf8 {[%clk 0:00:22]} 29. h4 {[%clk 0:00:47]}  Bc6 {[%clk 0:00:12]} 30. Ra7 {[%clk 0:00:42]}  Nb4 {[%clk 0:00:06]} 31. Ne5 {[%clk 0:00:37]}  Bxf3 {[%clk 0:00:05]} 32. Nd7+ {[%clk 0:00:34]}  Kg8 {[%clk 0:00:04]} 33. Nxb8 {[%clk 0:00:35]} 1-0


[Site "https://www.chess.com"]

[Event "Titled Tuesday Blitz November 07 Late 2023"]
[White "Salinas Herrera, Pablo"]
[Black "GaiozNigalidze"]
[WhiteFideId "3407128"]
[WhiteElo "2893"]
[BlackElo "2747"]
[Result "1-0"]
[Round "7"]
[TimeControl "180+1"]
[Date "2023.11.07"]
[WhiteClock "0:00:06"]
[BlackClock "0:00:18"]
[Board "17"]

1. d4 {[%clk 0:03:00]}  Nf6 {[%clk 0:02:58]} 2. Nf3 {[%clk 0:03:00]}  c5 {[%clk 0:02:58]} 3. d5 {[%clk 0:02:59]}  b5 {[%clk 0:02:58]} 4. a4 {[%clk 0:02:58]}  Qa5+ {[%clk 0:02:57]} 5. Bd2 {[%clk 0:02:48]}  b4 {[%clk 0:02:56]} 6. c4 {[%clk 0:02:44]}  g6 {[%clk 0:02:56]} 7. b3 {[%clk 0:02:42]}  Bg7 {[%clk 0:02:55]} 8. Ra2 {[%clk 0:02:42]}  d6 {[%clk 0:02:52]} 9. g3 {[%clk 0:02:42]}  Ne4 {[%clk 0:02:48]} 10. Bg2 {[%clk 0:02:40]}  Nxd2 {[%clk 0:02:47]} 11. Nbxd2 {[%clk 0:02:38]}  Bg4 {[%clk 0:02:43]} 12. O-O {[%clk 0:02:38]}  Bxf3 {[%clk 0:02:43]} 13. exf3 {[%clk 0:02:37]}  O-O {[%clk 0:02:43]} 14. f4 {[%clk 0:02:38]}  Qc7 {[%clk 0:02:32]} 15. Re1 {[%clk 0:02:38]}  a5 {[%clk 0:02:32]} 16. Nf1 {[%clk 0:02:37]}  Ra7 {[%clk 0:02:31]} 17. Rae2 {[%clk 0:02:36]}  Re8 {[%clk 0:02:29]} 18. Re4 {[%clk 0:02:31]}  Qd8 {[%clk 0:02:29]} 19. Qf3 {[%clk 0:02:25]}  Nd7 {[%clk 0:02:23]} 20. h4 {[%clk 0:02:25]}  Bc3 {[%clk 0:02:21]} 21. R1e2 {[%clk 0:02:25]}  Nf6 {[%clk 0:02:21]} 22. R4e3 {[%clk 0:02:25]}  Bd4 {[%clk 0:02:21]} 23. Rd3 {[%clk 0:02:25]}  Qd7 {[%clk 0:02:10]} 24. Ne3 {[%clk 0:02:19]}  h5 {[%clk 0:01:41]} 25. Nc2 {[%clk 0:02:12]}  Bc3 {[%clk 0:01:38]} 26. Rde3 {[%clk 0:02:12]}  Qd8 {[%clk 0:01:28]} 27. Bh3 {[%clk 0:02:11]}  Kh8 {[%clk 0:01:20]} 28. f5 {[%clk 0:02:11]}  Rg8 {[%clk 0:01:16]} 29. fxg6 {[%clk 0:02:11]}  Rxg6 {[%clk 0:01:17]} 30. Bf5 {[%clk 0:02:08]}  Rg7 {[%clk 0:01:16]} 31. Qf4 {[%clk 0:02:02]}  Qf8 {[%clk 0:01:12]} 32. Kf1 {[%clk 0:01:51]}  Ng8 {[%clk 0:01:08]} 33. Bd3 {[%clk 0:01:41]}  Rb7 {[%clk 0:00:52]} 34. Qf5 {[%clk 0:01:41]}  Nf6 {[%clk 0:00:51]} 35. Rf3 {[%clk 0:01:39]}  Kg8 {[%clk 0:00:49]} 36. Ne3 {[%clk 0:01:39]}  Bd4 {[%clk 0:00:48]} 37. Ng2 {[%clk 0:01:39]}  Be5 {[%clk 0:00:47]} 38. Rfe3 {[%clk 0:01:28]}  Bd4 {[%clk 0:00:41]} 39. Rf3 {[%clk 0:01:16]}  Be5 {[%clk 0:00:39]} 40. Bc2 {[%clk 0:00:59]}  Rc7 {[%clk 0:00:38]} 41. Ne1 {[%clk 0:00:56]}  Qc8 {[%clk 0:00:33]} 42. Nd3 {[%clk 0:00:56]}  Ng4 {[%clk 0:00:30]} 43. Qxh5 {[%clk 0:00:42]}  Nh2+ {[%clk 0:00:27]} 44. Kg2 {[%clk 0:00:43]}  Nxf3 {[%clk 0:00:28]} 45. Qxf3 {[%clk 0:00:43]}  Qf8 {[%clk 0:00:24]} 46. Nxe5 {[%clk 0:00:43]}  dxe5 {[%clk 0:00:25]} 47. Rxe5 {[%clk 0:00:43]}  Rd7 {[%clk 0:00:24]} 48. Qe4 {[%clk 0:00:35]}  f6 {[%clk 0:00:23]} 49. Re6 {[%clk 0:00:32]}  Rd6 {[%clk 0:00:23]} 50. Rxd6 {[%clk 0:00:30]}  exd6 {[%clk 0:00:24]} 51. Qe6+ {[%clk 0:00:31]}  Kh8 {[%clk 0:00:23]} 52. Bf5 {[%clk 0:00:21]}  Qe7 {[%clk 0:00:23]} 53. f4 {[%clk 0:00:18]}  Qf8 {[%clk 0:00:22]} 54. Kf3 {[%clk 0:00:17]}  Re7 {[%clk 0:00:21]} 55. Qc8 {[%clk 0:00:14]}  Qxc8 {[%clk 0:00:20]} 56. Bxc8 {[%clk 0:00:13]}  Re1 {[%clk 0:00:21]} 57. Bf5 {[%clk 0:00:06]}  Kg7 {[%clk 0:00:19]} 58. g4 {[%clk 0:00:05]}  Rc1 {[%clk 0:00:19]} 59. g5 {[%clk 0:00:06]}  Rc3+ {[%clk 0:00:19]} 60. Kg4 {[%clk 0:00:06]}  Rxb3 {[%clk 0:00:20]} 61. h5 {[%clk 0:00:07]}  Rb2 {[%clk 0:00:20]} 62. h6+ {[%clk 0:00:06]}  Kh8 {[%clk 0:00:20]} 63. g6 {[%clk 0:00:03]}  Rg2+ {[%clk 0:00:19]} 64. Kf3 {[%clk 0:00:03]}  Rg1 {[%clk 0:00:18]} 65. g7+ {[%clk 0:00:03]}  Rxg7 {[%clk 0:00:18]} 66. hxg7+ {[%clk 0:00:04]}  Kxg7 {[%clk 0:00:19]} 67. Kg4 {[%clk 0:00:05]}  Kf7 {[%clk 0:00:19]} 68. Kh5 {[%clk 0:00:05]}  Kg7 {[%clk 0:00:19]} 69. Bd3 {[%clk 0:00:05]}  f5 {[%clk 0:00:19]} 70. Bxf5 {[%clk 0:00:05]}  Kf6 {[%clk 0:00:18]} 71. Bc2 {[%clk 0:00:06]} 1-0


[Site "https://www.chess.com"]

[Event "Titled Tuesday Blitz November 07 Late 2023"]
[White "mind1mover"]
[Black "Maksimovic, Bojan"]
[BlackFideId "14408120"]
[WhiteElo "2842"]
[BlackElo "2734"]
[Result "0-1"]
[Round "7"]
[TimeControl "180+1"]
[Date "2023.11.07"]
[WhiteClock "0:00:00"]
[BlackClock "0:00:09"]
[Board "18"]

1. Nf3 {[%clk 0:03:00]}  Nf6 {[%clk 0:02:51]} 2. b3 {[%clk 0:03:00]}  g6 {[%clk 0:02:51]} 3. Bb2 {[%clk 0:03:01]}  Bg7 {[%clk 0:02:51]} 4. g3 {[%clk 0:03:02]}  d6 {[%clk 0:02:52]} 5. d4 {[%clk 0:03:01]}  c5 {[%clk 0:02:52]} 6. dxc5 {[%clk 0:02:56]}  Qa5+ {[%clk 0:02:52]} 7. Nbd2 {[%clk 0:02:27]}  Qxc5 {[%clk 0:02:50]} 8. e3 {[%clk 0:02:20]}  O-O {[%clk 0:02:47]} 9. Bg2 {[%clk 0:02:17]}  Nc6 {[%clk 0:02:48]} 10. O-O {[%clk 0:02:17]}  Qh5 {[%clk 0:02:45]} 11. Nd4 {[%clk 0:02:04]}  Bg4 {[%clk 0:02:44]} 12. Bf3 {[%clk 0:01:48]}  Ne5 {[%clk 0:02:08]} 13. Be2 {[%clk 0:01:38]}  Bxe2 {[%clk 0:01:54]} 14. Qxe2 {[%clk 0:01:38]}  Qxe2 {[%clk 0:01:24]} 15. Nxe2 {[%clk 0:01:38]}  Nd5 {[%clk 0:01:24]} 16. c4 {[%clk 0:01:29]}  Nb4 {[%clk 0:01:23]} 17. a3 {[%clk 0:01:21]}  Nbd3 {[%clk 0:01:23]} 18. Bd4 {[%clk 0:01:20]}  Rfc8 {[%clk 0:01:22]} 19. Rfd1 {[%clk 0:01:17]}  Nc5 {[%clk 0:01:21]} 20. Nc3 {[%clk 0:01:05]}  Ned7 {[%clk 0:01:05]} 21. Nd5 {[%clk 0:00:58]}  Bf8 {[%clk 0:00:47]} 22. Rab1 {[%clk 0:00:58]}  e6 {[%clk 0:00:47]} 23. Nc3 {[%clk 0:00:48]}  f5 {[%clk 0:00:46]} 24. b4 {[%clk 0:00:41]}  Na6 {[%clk 0:00:46]} 25. Nb5 {[%clk 0:00:40]}  b6 {[%clk 0:00:41]} 26. Rbc1 {[%clk 0:00:27]}  Nc7 {[%clk 0:00:40]} 27. Nb3 {[%clk 0:00:22]}  Kf7 {[%clk 0:00:36]} 28. Bb2 {[%clk 0:00:20]}  Ne8 {[%clk 0:00:30]} 29. N5d4 {[%clk 0:00:13]}  Ndf6 {[%clk 0:00:28]} 30. Ne2 {[%clk 0:00:12]}  Ne4 {[%clk 0:00:25]} 31. f3 {[%clk 0:00:12]}  N4f6 {[%clk 0:00:24]} 32. Nbd4 {[%clk 0:00:10]}  a6 {[%clk 0:00:21]} 33. Nb3 {[%clk 0:00:08]}  Rc7 {[%clk 0:00:21]} 34. Bd4 {[%clk 0:00:06]}  Rb8 {[%clk 0:00:19]} 35. Rc2 {[%clk 0:00:06]}  g5 {[%clk 0:00:12]} 36. h3 {[%clk 0:00:05]}  h5 {[%clk 0:00:12]} 37. Rdc1 {[%clk 0:00:05]}  g4 {[%clk 0:00:13]} 38. hxg4 {[%clk 0:00:04]}  hxg4 {[%clk 0:00:14]} 39. Kg2 {[%clk 0:00:04]}  gxf3+ {[%clk 0:00:14]} 40. Kxf3 {[%clk 0:00:05]}  Ng4 {[%clk 0:00:15]} 41. Rh1 {[%clk 0:00:05]}  Nef6 {[%clk 0:00:15]} 42. Bxf6 {[%clk 0:00:04]}  Kxf6 {[%clk 0:00:16]} 43. Nf4 {[%clk 0:00:03]}  Ne5+ {[%clk 0:00:15]} 44. Ke2 {[%clk 0:00:02]}  Rxc4 {[%clk 0:00:14]} 45. Rxc4 {[%clk 0:00:03]}  Nxc4 {[%clk 0:00:15]} 46. Nd4 {[%clk 0:00:04]}  e5 {[%clk 0:00:15]} 47. Nd5+ {[%clk 0:00:04]}  Kg6 {[%clk 0:00:15]} 48. Nc6 {[%clk 0:00:04]}  Re8 {[%clk 0:00:14]} 49. Nc7 {[%clk 0:00:04]}  Rc8 {[%clk 0:00:14]} 50. Nxa6 {[%clk 0:00:02]}  Rxc6 {[%clk 0:00:14]} 51. Rc1 {[%clk 0:00:03]}  b5 {[%clk 0:00:14]} 52. Nb8 {[%clk 0:00:03]}  Rc7 {[%clk 0:00:14]} 53. a4 {[%clk 0:00:04]}  bxa4 {[%clk 0:00:12]} 54. b5 {[%clk 0:00:05]}  Rb7 {[%clk 0:00:12]} 55. Nc6 {[%clk 0:00:05]}  d5 {[%clk 0:00:12]} 56. Rb1 {[%clk 0:00:02]}  a3 {[%clk 0:00:12]} 57. Nd8 {[%clk 0:00:02]}  Rb6 {[%clk 0:00:10]} 58. Nc6 {[%clk 0:00:03]}  Kf6 {[%clk 0:00:10]} 59. Na7 {[%clk 0:00:02]}  Bc5 {[%clk 0:00:10]} 60. Nc8 {[%clk 0:00:02]}  a2 {[%clk 0:00:10]} 61. Nxb6 {[%clk 0:00:01]}  axb1=Q {[%clk 0:00:09]} 62. Nd7+ {[%clk 0:00:02]}  Kg5 {[%clk 0:00:10]} 63. Nxc5 {[%clk 0:00:00]}  Qc2+ {[%clk 0:00:09]} 0-1


[Site "https://www.chess.com"]